[Event "Titled Tuesday Blitz June 20 Early 2023"]
[White "Ning, Kaiyu"]
[Black "Raja Rithvik R"]
[WhiteFideId "8614750"]
[BlackFideId "35007394"]
[WhiteElo "2287"]
[BlackElo "2395"]
[Result "1-0"]
[Round "4"]
[TimeControl "180+2"]
[Date "2023.06.20"]
[WhiteClock "0:00:06"]
[BlackClock "0:00:00"]
[Board "58"]

1. e4 {[%clk 0:03:00]}  c5 {[%clk 0:02:55]} 2. Nf3 {[%clk 0:03:00]}  d6 {[%clk 0:02:54]} 3. Bb5+ {[%clk 0:02:56]}  Nd7 {[%clk 0:02:53]} 4. d4 {[%clk 0:02:55]}  cxd4 {[%clk 0:02:53]} 5. Nxd4 {[%clk 0:02:56]}  a6 {[%clk 0:02:49]} 6. Bd3 {[%clk 0:02:53]}  Ngf6 {[%clk 0:02:48]} 7. O-O {[%clk 0:02:52]}  Nc5 {[%clk 0:02:46]} 8. Nc3 {[%clk 0:02:50]}  e6 {[%clk 0:02:35]} 9. a4 {[%clk 0:02:49]}  Be7 {[%clk 0:02:34]} 10. Be3 {[%clk 0:02:45]}  O-O {[%clk 0:02:30]} 11. a5 {[%clk 0:02:43]}  Bd7 {[%clk 0:02:21]} 12. f4 {[%clk 0:02:23]}  Qc7 {[%clk 0:02:17]} 13. Kh1 {[%clk 0:02:16]}  Rac8 {[%clk 0:01:55]} 14. Nf3 {[%clk 0:02:16]}  e5 {[%clk 0:01:52]} 15. f5 {[%clk 0:02:00]}  Bc6 {[%clk 0:01:50]} 16. Bxc5 {[%clk 0:01:41]}  dxc5 {[%clk 0:01:50]} 17. Qe2 {[%clk 0:01:41]}  c4 {[%clk 0:01:15]} 18. Bxc4 {[%clk 0:01:40]}  Bb4 {[%clk 0:01:16]} 19. Nd5 {[%clk 0:01:15]}  Bxd5 {[%clk 0:01:08]} 20. Bxd5 {[%clk 0:01:16]}  Nxd5 {[%clk 0:00:31]} 21. exd5 {[%clk 0:01:15]}  Qxc2 {[%clk 0:00:32]} 22. Qxe5 {[%clk 0:01:11]}  Rfe8 {[%clk 0:00:33]} 23. Qf4 {[%clk 0:01:08]}  Re4 {[%clk 0:00:30]} 24. Qg3 {[%clk 0:00:57]}  Qxb2 {[%clk 0:00:28]} 25. f6 {[%clk 0:00:48]}  g6 {[%clk 0:00:15]} 26. Ng5 {[%clk 0:00:48]}  Rec4 {[%clk 0:00:12]} 27. Rad1 {[%clk 0:00:06]}  h6 {[%clk 0:00:12]} 28. Qh3 {[%clk 0:00:06]}  hxg5 {[%clk 0:00:10]} 29. d6 {[%clk 0:00:05]}  Bxd6 {[%clk 0:00:04]} 30. Rxd6 {[%clk 0:00:06]}  Qf2 {[%clk 0:00:04]} 31. Rdd1 {[%clk 0:00:01]}  Qh4 {[%clk 0:00:02]} 32. Qd7 {[%clk 0:00:01]}  Rf8 {[%clk 0:00:03]} 33. Qxb7 {[%clk 0:00:01]}  Rf4 {[%clk 0:00:02]} 34. Qxa6 {[%clk 0:00:01]}  Rxf1+ {[%clk 0:00:03]} 35. Qxf1 {[%clk 0:00:01]}  g4 {[%clk 0:00:03]} 36. a6 {[%clk 0:00:02]}  g3 {[%clk 0:00:04]} 37. h3 {[%clk 0:00:03]}  Qa4 {[%clk 0:00:04]} 38. Ra1 {[%clk 0:00:03]}  Qd4 {[%clk 0:00:04]} 39. a7 {[%clk 0:00:04]}  Ra8 {[%clk 0:00:04]} 40. Qa6 {[%clk 0:00:04]}  Qf2 {[%clk 0:00:03]} 41. Qa2 {[%clk 0:00:04]}  Qxf6 {[%clk 0:00:02]} 42. Qa6 {[%clk 0:00:04]}  Qf2 {[%clk 0:00:03]} 43. Qb7 {[%clk 0:00:04]}  Re8 {[%clk 0:00:02]} 44. a8=Q {[%clk 0:00:05]}  Rxa8 {[%clk 0:00:03]} 45. Qxa8+ {[%clk 0:00:05]}  Kg7 {[%clk 0:00:04]} 46. Qa2 {[%clk 0:00:06]}  Qf4 {[%clk 0:00:05]} 47. Qb2+ {[%clk 0:00:06]}  Kh7 {[%clk 0:00:05]} 48. Re1 {[%clk 0:00:06]}  Qf5 {[%clk 0:00:04]} 49. Qe2 {[%clk 0:00:07]}  Qf4 {[%clk 0:00:03]} 50. Rf1 {[%clk 0:00:07]}  Qc7 {[%clk 0:00:03]} 51. Qf3 {[%clk 0:00:08]}  Kg8 {[%clk 0:00:02]} 52. Qf4 {[%clk 0:00:08]}  Qc3 {[%clk 0:00:03]} 53. Qf3 {[%clk 0:00:08]}  Qe5 {[%clk 0:00:03]} 54. Rd1 {[%clk 0:00:08]}  Kh7 {[%clk 0:00:02]} 55. Kg1 {[%clk 0:00:09]}  Qc5+ {[%clk 0:00:01]} 56. Kf1 {[%clk 0:00:07]}  Qc7 {[%clk 0:00:01]} 57. Rd3 {[%clk 0:00:06]}  Qc1+ {[%clk 0:00:02]} 58. Ke2 {[%clk 0:00:05]}  Qc2+ {[%clk 0:00:02]} 59. Rd2 {[%clk 0:00:06]}  Qc4+ {[%clk 0:00:02]} 60. Qd3 {[%clk 0:00:07]}  Qe6+ {[%clk 0:00:02]} 61. Qe3 {[%clk 0:00:07]}  Qc4+ {[%clk 0:00:03]} 62. Kd1 {[%clk 0:00:06]}  Qf1+ {[%clk 0:00:03]} 63. Kc2 {[%clk 0:00:07]}  Qc4+ {[%clk 0:00:03]} 64. Qc3 {[%clk 0:00:07]}  Qe4+ {[%clk 0:00:03]} 65. Kb2 {[%clk 0:00:08]}  Qb7+ {[%clk 0:00:03]} 66. Qb3 {[%clk 0:00:08]}  Qc7 {[%clk 0:00:04]} 67. Rc2 {[%clk 0:00:08]}  Qe5+ {[%clk 0:00:04]} 68. Ka2 {[%clk 0:00:09]}  Qa5+ {[%clk 0:00:05]} 69. Qa3 {[%clk 0:00:10]}  Qd5+ {[%clk 0:00:05]} 70. Qb3 {[%clk 0:00:09]}  Qa5+ {[%clk 0:00:05]} 71. Kb2 {[%clk 0:00:10]}  Qe5+ {[%clk 0:00:06]} 72. Qc3 {[%clk 0:00:09]}  Qb5+ {[%clk 0:00:06]} 73. Ka1 {[%clk 0:00:08]}  Qf1+ {[%clk 0:00:06]} 74. Ka2 {[%clk 0:00:08]}  Qa6+ {[%clk 0:00:06]} 75. Qa3 {[%clk 0:00:07]}  Qe6+ {[%clk 0:00:06]} 76. Kb1 {[%clk 0:00:08]}  Qe1+ {[%clk 0:00:06]} 77. Rc1 {[%clk 0:00:06]}  Qe4+ {[%clk 0:00:07]} 78. Rc2 {[%clk 0:00:06]}  Qe1+ {[%clk 0:00:07]} 79. Kb2 {[%clk 0:00:06]}  Qe5+ {[%clk 0:00:08]} 80. Rc3 {[%clk 0:00:06]}  Qe2+ {[%clk 0:00:08]} 81. Ka1 {[%clk 0:00:06]}  Qf1+ {[%clk 0:00:07]} 82. Qc1 {[%clk 0:00:05]}  Qxg2 {[%clk 0:00:07]} 83. Re3 {[%clk 0:00:02]}  Qf2 {[%clk 0:00:05]} 84. Qe1 {[%clk 0:00:02]}  Qf6+ {[%clk 0:00:05]} 85. Kb1 {[%clk 0:00:03]}  g2 {[%clk 0:00:05]} 86. Qd1 {[%clk 0:00:02]}  Qf1 {[%clk 0:00:02]} 87. Re1 {[%clk 0:00:02]}  Qf5+ {[%clk 0:00:03]} 88. Kc1 {[%clk 0:00:03]}  Qxh3 {[%clk 0:00:04]} 89. Rg1 {[%clk 0:00:03]}  Qc3+ {[%clk 0:00:04]} 90. Kb1 {[%clk 0:00:03]}  Qb4+ {[%clk 0:00:04]} 91. Kc2 {[%clk 0:00:03]}  Qc4+ {[%clk 0:00:04]} 92. Kd2 {[%clk 0:00:03]}  Qd4+ {[%clk 0:00:05]} 93. Ke2 {[%clk 0:00:04]}  Qe4+ {[%clk 0:00:05]} 94. Kf2 {[%clk 0:00:05]}  Qf4+ {[%clk 0:00:05]} 95. Kxg2 {[%clk 0:00:05]}  Qg5+ {[%clk 0:00:06]} 96. Kf1 {[%clk 0:00:05]}  Qf4+ {[%clk 0:00:06]} 97. Ke2 {[%clk 0:00:06]}  Qe4+ {[%clk 0:00:06]} 98. Kf2 {[%clk 0:00:06]}  Qf4+ {[%clk 0:00:07]} 99. Qf3 {[%clk 0:00:07]}  Qd2+ {[%clk 0:00:08]} 100. Qe2 {[%clk 0:00:07]}  Qf4+ {[%clk 0:00:08]} 101. Kg2 {[%clk 0:00:07]}  Qg5+ {[%clk 0:00:08]} 102. Kh1 {[%clk 0:00:07]}  Qd5+ {[%clk 0:00:05]} 103. Qg2 {[%clk 0:00:08]}  Qd4 {[%clk 0:00:05]} 104. Qh2+ {[%clk 0:00:08]}  Kg7 {[%clk 0:00:05]} 105. Re1 {[%clk 0:00:07]}  Qd5+ {[%clk 0:00:05]} 106. Qg2 {[%clk 0:00:07]}  Qh5+ {[%clk 0:00:05]} 107. Kg1 {[%clk 0:00:08]}  Qc5+ {[%clk 0:00:06]} 108. Qf2 {[%clk 0:00:08]}  Qg5+ {[%clk 0:00:07]} 109. Kf1 {[%clk 0:00:08]}  Qb5+ {[%clk 0:00:07]} 110. Kg2 {[%clk 0:00:07]}  Qg5+ {[%clk 0:00:06]} 111. Qg3 {[%clk 0:00:08]}  Qd2+ {[%clk 0:00:06]} 112. Kf1 {[%clk 0:00:08]}  Qc2 {[%clk 0:00:02]} 113. Qe5+ {[%clk 0:00:07]}  Kh7 {[%clk 0:00:03]} 114. Re2 {[%clk 0:00:07]}  Qc1+ {[%clk 0:00:01]} 115. Kf2 {[%clk 0:00:08]}  Qc4 {[%clk 0:00:01]} 116. Qf6 {[%clk 0:00:07]}  Qc5+ {[%clk 0:00:01]} 117. Re3 {[%clk 0:00:07]}  Qc2+ {[%clk 0:00:01]} 118. Ke1 {[%clk 0:00:07]}  Qc1+ {[%clk 0:00:01]} 119. Ke2 {[%clk 0:00:08]}  Qc2+ {[%clk 0:00:02]} 120. Kf3 {[%clk 0:00:07]}  Qd1+ {[%clk 0:00:02]} 121. Ke4 {[%clk 0:00:08]}  Qg4+ {[%clk 0:00:02]} 122. Kd5 {[%clk 0:00:07]}  Qd7+ {[%clk 0:00:00]} 123. Kc4 {[%clk 0:00:06]} 1-0


[Site "https://www.chess.com"]

[Event "Titled Tuesday Blitz June 20 Early 2023"]
[White "Roebers, Eline"]
[Black "Nazari, Arad"]
[WhiteFideId "1058401"]
[BlackFideId "12577324"]
[WhiteElo "2554"]
[BlackElo "2175"]
[Result "1-0"]
[Round "4"]
[TimeControl "180+2"]
[Date "2023.06.20"]
[WhiteClock "0:00:16"]
[BlackClock "0:00:03"]
[Board "64"]

1. e4 {[%clk 0:02:09]}  c5 {[%clk 0:02:57]} 2. Nf3 {[%clk 0:02:09]}  d6 {[%clk 0:02:58]} 3. d4 {[%clk 0:02:09]}  cxd4 {[%clk 0:02:59]} 4. Nxd4 {[%clk 0:02:10]}  Nf6 {[%clk 0:02:59]} 5. Nc3 {[%clk 0:02:10]}  a6 {[%clk 0:02:59]} 6. f4 {[%clk 0:02:10]}  e5 {[%clk 0:02:51]} 7. Nb3 {[%clk 0:02:08]}  Qc7 {[%clk 0:02:50]} 8. Be2 {[%clk 0:02:04]}  Nc6 {[%clk 0:02:33]} 9. O-O {[%clk 0:02:03]}  Be7 {[%clk 0:02:31]} 10. a4 {[%clk 0:02:00]}  Nb4 {[%clk 0:02:07]} 11. Be3 {[%clk 0:01:56]}  Be6 {[%clk 0:02:06]} 12. f5 {[%clk 0:01:49]}  Bc4 {[%clk 0:02:02]} 13. a5 {[%clk 0:01:46]}  Rc8 {[%clk 0:01:51]} 14. Ra4 {[%clk 0:01:42]}  d5 {[%clk 0:01:33]} 15. exd5 {[%clk 0:01:31]}  Bxe2 {[%clk 0:01:15]} 16. Qxe2 {[%clk 0:01:23]}  Nfxd5 {[%clk 0:01:15]} 17. Nxd5 {[%clk 0:01:21]}  Nxd5 {[%clk 0:01:16]} 18. Re4 {[%clk 0:01:07]}  Qxc2 {[%clk 0:01:11]} 19. Qxc2 {[%clk 0:01:06]}  Rxc2 {[%clk 0:01:11]} 20. Rxe5 {[%clk 0:01:07]}  Nxe3 {[%clk 0:00:43]} 21. Rxe3 {[%clk 0:00:34]}  Rc7 {[%clk 0:00:36]} 22. Rfe1 {[%clk 0:00:33]}  f6 {[%clk 0:00:33]} 23. Nd4 {[%clk 0:00:33]}  Kf7 {[%clk 0:00:33]} 24. Ne6 {[%clk 0:00:33]}  Rd7 {[%clk 0:00:32]} 25. Rg3 {[%clk 0:00:31]}  Rg8 {[%clk 0:00:30]} 26. Rh3 {[%clk 0:00:30]}  Bb4 {[%clk 0:00:20]} 27. Re4 {[%clk 0:00:30]}  Bxa5 {[%clk 0:00:21]} 28. Rxh7 {[%clk 0:00:29]}  Bb6+ {[%clk 0:00:19]} 29. Kf1 {[%clk 0:00:29]}  Rd5 {[%clk 0:00:19]} 30. g4 {[%clk 0:00:24]}  Rd1+ {[%clk 0:00:16]} 31. Ke2 {[%clk 0:00:23]}  Rd6 {[%clk 0:00:11]} 32. h4 {[%clk 0:00:20]}  Rd7 {[%clk 0:00:04]} 33. h5 {[%clk 0:00:20]}  Ke8 {[%clk 0:00:02]} 34. Nxg7+ {[%clk 0:00:18]}  Kd8 {[%clk 0:00:03]} 35. Ne6+ {[%clk 0:00:18]}  Kc8 {[%clk 0:00:03]} 36. Rxd7 {[%clk 0:00:18]}  Kxd7 {[%clk 0:00:04]} 37. Rb4 {[%clk 0:00:18]}  Kc6 {[%clk 0:00:03]} 38. Kf3 {[%clk 0:00:18]}  Bc5 {[%clk 0:00:02]} 39. Rc4 {[%clk 0:00:18]}  b6 {[%clk 0:00:03]} 40. Nxc5 {[%clk 0:00:15]}  bxc5 {[%clk 0:00:04]} 41. b4 {[%clk 0:00:16]}  Kb5 {[%clk 0:00:04]} 42. Rxc5+ {[%clk 0:00:16]}  Kxb4 {[%clk 0:00:04]} 43. Rc6 {[%clk 0:00:16]}  a5 {[%clk 0:00:05]} 44. Rxf6 {[%clk 0:00:16]}  Ra8 {[%clk 0:00:05]} 45. Rb6+ {[%clk 0:00:16]}  Kc5 {[%clk 0:00:03]} 46. Rb1 {[%clk 0:00:16]} 1-0


[Site "https://www.chess.com"]

[Event "Titled Tuesday Blitz June 20 Early 2023"]
[White "Yuan, Qingyu"]
[Black "Mamedov, Edgar"]
[WhiteFideId "8609772"]
[BlackFideId "13739980"]
[WhiteElo "2359"]
[BlackElo "2317"]
[Result "1-0"]
[Round "4"]
[TimeControl "180+2"]
[Date "2023.06.20"]
[WhiteClock "0:01:04"]
[BlackClock "0:00:16"]
[Board "65"]

1. e4 {[%clk 0:03:00]}  c5 {[%clk 0:02:59]} 2. Nc3 {[%clk 0:02:59]}  e6 {[%clk 0:02:57]} 3. g3 {[%clk 0:02:54]}  d5 {[%clk 0:02:56]} 4. Bg2 {[%clk 0:02:50]}  dxe4 {[%clk 0:02:48]} 5. Nxe4 {[%clk 0:02:50]}  Nc6 {[%clk 0:02:47]} 6. Ne2 {[%clk 0:02:45]}  Be7 {[%clk 0:02:46]} 7. O-O {[%clk 0:02:42]}  Nf6 {[%clk 0:02:45]} 8. d3 {[%clk 0:02:40]}  O-O {[%clk 0:02:44]} 9. Be3 {[%clk 0:02:32]}  Nd4 {[%clk 0:02:34]} 10. c3 {[%clk 0:02:30]}  Nxe2+ {[%clk 0:02:24]} 11. Qxe2 {[%clk 0:02:31]}  Nd7 {[%clk 0:02:04]} 12. Rfd1 {[%clk 0:02:19]}  f5 {[%clk 0:02:01]} 13. Nd2 {[%clk 0:02:16]}  Nf6 {[%clk 0:01:56]} 14. d4 {[%clk 0:02:11]}  Nd5 {[%clk 0:01:44]} 15. dxc5 {[%clk 0:02:05]}  Nxe3 {[%clk 0:01:44]} 16. Qxe3 {[%clk 0:02:05]}  f4 {[%clk 0:01:33]} 17. Qd4 {[%clk 0:01:52]}  fxg3 {[%clk 0:01:29]} 18. hxg3 {[%clk 0:01:51]}  Qc7 {[%clk 0:01:17]} 19. Ne4 {[%clk 0:01:45]}  Rf5 {[%clk 0:01:12]} 20. b4 {[%clk 0:01:42]}  Rd5 {[%clk 0:01:08]} 21. Qc4 {[%clk 0:01:37]}  Qd8 {[%clk 0:00:45]} 22. Rd4 {[%clk 0:01:36]}  Rxd4 {[%clk 0:00:32]} 23. cxd4 {[%clk 0:01:34]}  Bd7 {[%clk 0:00:32]} 24. Rd1 {[%clk 0:01:18]}  Kh8 {[%clk 0:00:26]} 25. Nc3 {[%clk 0:01:10]}  Bc6 {[%clk 0:00:23]} 26. Bxc6 {[%clk 0:01:05]}  bxc6 {[%clk 0:00:22]} 27. Qxe6 {[%clk 0:01:06]}  Bf6 {[%clk 0:00:20]} 28. Qxc6 {[%clk 0:01:04]}  Bxd4 {[%clk 0:00:16]} 29. Rxd4 {[%clk 0:01:04]} 1-0


[Site "https://www.chess.com"]

[Event "Titled Tuesday Blitz June 20 Early 2023"]
[White "Karamsetty, Jeevan"]
[Black "Veiga, Jose Francisco R P Neves"]
[WhiteFideId "2025337"]
[BlackFideId "1930087"]
[WhiteElo "2131"]
[BlackElo "2319"]
[Result "1-0"]
[Round "4"]
[TimeControl "180+2"]
[Date "2023.06.20"]
[WhiteClock "0:01:35"]
[BlackClock "0:00:34"]
[Board "68"]

1. g3 {[%clk 0:03:00]}  Nf6 {[%clk 0:02:54]} 2. Bg2 {[%clk 0:03:00]}  e5 {[%clk 0:02:54]} 3. d3 {[%clk 0:02:56]}  d5 {[%clk 0:02:54]} 4. Nf3 {[%clk 0:02:56]}  Nc6 {[%clk 0:02:53]} 5. O-O {[%clk 0:02:56]}  Be7 {[%clk 0:02:52]} 6. Nbd2 {[%clk 0:02:56]}  O-O {[%clk 0:02:52]} 7. e4 {[%clk 0:02:56]}  dxe4 {[%clk 0:02:41]} 8. Nxe4 {[%clk 0:02:51]}  Nxe4 {[%clk 0:02:40]} 9. dxe4 {[%clk 0:02:52]}  Be6 {[%clk 0:02:40]} 10. Qe2 {[%clk 0:02:49]}  Nd4 {[%clk 0:02:05]} 11. Nxd4 {[%clk 0:02:45]}  Qxd4 {[%clk 0:02:06]} 12. c3 {[%clk 0:02:38]}  Qc4 {[%clk 0:02:04]} 13. Qxc4 {[%clk 0:02:33]}  Bxc4 {[%clk 0:02:02]} 14. Rd1 {[%clk 0:02:34]}  Bc5 {[%clk 0:01:58]} 15. b3 {[%clk 0:02:30]}  Be6 {[%clk 0:01:56]} 16. Bg5 {[%clk 0:02:18]}  f6 {[%clk 0:01:55]} 17. Be3 {[%clk 0:02:14]}  Bxe3 {[%clk 0:01:55]} 18. fxe3 {[%clk 0:02:14]}  Rfd8 {[%clk 0:01:55]} 19. h3 {[%clk 0:02:13]}  Kf7 {[%clk 0:01:55]} 20. Kf2 {[%clk 0:02:12]}  Ke7 {[%clk 0:01:55]} 21. c4 {[%clk 0:02:08]}  a5 {[%clk 0:01:55]} 22. Ke2 {[%clk 0:01:56]}  Rd6 {[%clk 0:01:53]} 23. Rxd6 {[%clk 0:01:55]}  Kxd6 {[%clk 0:01:53]} 24. Kd3 {[%clk 0:01:48]}  Kc5 {[%clk 0:01:53]} 25. Kc3 {[%clk 0:01:48]}  h5 {[%clk 0:01:36]} 26. Rd1 {[%clk 0:01:45]}  h4 {[%clk 0:01:27]} 27. g4 {[%clk 0:01:42]}  Ra6 {[%clk 0:01:08]} 28. Bf3 {[%clk 0:01:39]}  Rd6 {[%clk 0:00:57]} 29. Rg1 {[%clk 0:01:36]}  c6 {[%clk 0:00:48]} 30. a3 {[%clk 0:01:35]}  b5 {[%clk 0:00:47]} 31. b4+ {[%clk 0:01:34]}  axb4+ {[%clk 0:00:34]} 32. axb4+ {[%clk 0:01:35]} 1-0


[Site "https://www.chess.com"]

[Event "Titled Tuesday Blitz June 20 Early 2023"]
[White "Renjith, Sravan"]
[Black "Bethke, Richard"]
[WhiteFideId "4306783"]
[BlackFideId "12959243"]
[WhiteElo "2104"]
[BlackElo "2369"]
[Result "1-0"]
[Round "4"]
[TimeControl "180+2"]
[Date "2023.06.20"]
[WhiteClock "0:00:06"]
[BlackClock "0:00:37"]
[Board "69"]

1. b3 {[%clk 0:02:58]}  d5 {[%clk 0:02:46]} 2. Bb2 {[%clk 0:02:56]}  Nd7 {[%clk 0:02:40]} 3. Nf3 {[%clk 0:02:49]}  Ngf6 {[%clk 0:02:39]} 4. e3 {[%clk 0:02:46]}  e6 {[%clk 0:02:40]} 5. Be2 {[%clk 0:02:44]}  Bd6 {[%clk 0:02:39]} 6. O-O {[%clk 0:02:44]}  O-O {[%clk 0:02:39]} 7. c4 {[%clk 0:02:43]}  c6 {[%clk 0:02:39]} 8. d4 {[%clk 0:02:36]}  Qe7 {[%clk 0:02:38]} 9. Nbd2 {[%clk 0:02:35]}  e5 {[%clk 0:02:34]} 10. dxe5 {[%clk 0:02:17]}  Nxe5 {[%clk 0:02:33]} 11. cxd5 {[%clk 0:02:17]}  Nxd5 {[%clk 0:02:32]} 12. Nc4 {[%clk 0:01:51]}  Nxc4 {[%clk 0:02:25]} 13. bxc4 {[%clk 0:01:45]}  Nf6 {[%clk 0:02:24]} 14. Nd4 {[%clk 0:01:36]}  Rd8 {[%clk 0:02:22]} 15. Qc2 {[%clk 0:01:35]}  Bg4 {[%clk 0:02:20]} 16. Bxg4 {[%clk 0:01:01]}  Nxg4 {[%clk 0:02:21]} 17. h3 {[%clk 0:01:00]}  Ne5 {[%clk 0:02:01]} 18. Nf5 {[%clk 0:00:55]}  Qe6 {[%clk 0:01:55]} 19. c5 {[%clk 0:00:38]}  Bc7 {[%clk 0:01:52]} 20. f4 {[%clk 0:00:37]}  Nd3 {[%clk 0:01:52]} 21. Nxg7 {[%clk 0:00:34]}  Qxe3+ {[%clk 0:01:51]} 22. Kh1 {[%clk 0:00:31]}  Nxf4 {[%clk 0:01:49]} 23. Nf5 {[%clk 0:00:25]}  Qd2 {[%clk 0:01:49]} 24. Qxd2 {[%clk 0:00:09]}  Rxd2 {[%clk 0:01:50]} 25. Bc1 {[%clk 0:00:09]}  Rad8 {[%clk 0:01:43]} 26. Bxd2 {[%clk 0:00:09]}  Rxd2 {[%clk 0:01:44]} 27. Rad1 {[%clk 0:00:10]}  Rxd1 {[%clk 0:01:28]} 28. Rxd1 {[%clk 0:00:11]}  Ne6 {[%clk 0:01:29]} 29. Rc1 {[%clk 0:00:07]}  Kf8 {[%clk 0:01:20]} 30. g4 {[%clk 0:00:07]}  Ba5 {[%clk 0:01:18]} 31. Kg2 {[%clk 0:00:07]}  Bb4 {[%clk 0:01:18]} 32. Nd6 {[%clk 0:00:07]}  Nxc5 {[%clk 0:01:10]} 33. Rb1 {[%clk 0:00:07]}  a5 {[%clk 0:01:10]} 34. a3 {[%clk 0:00:04]}  Bxa3 {[%clk 0:01:07]} 35. Nxb7 {[%clk 0:00:05]}  Nxb7 {[%clk 0:01:06]} 36. Rxb7 {[%clk 0:00:06]}  Bb4 {[%clk 0:01:06]} 37. Ra7 {[%clk 0:00:06]}  c5 {[%clk 0:01:06]} 38. Kf3 {[%clk 0:00:06]}  c4 {[%clk 0:01:04]} 39. Ke4 {[%clk 0:00:07]}  c3 {[%clk 0:01:04]} 40. Kd3 {[%clk 0:00:07]}  Kg7 {[%clk 0:01:04]} 41. h4 {[%clk 0:00:07]}  Kg6 {[%clk 0:01:04]} 42. Ra6+ {[%clk 0:00:07]}  f6 {[%clk 0:01:04]} 43. g5 {[%clk 0:00:07]}  Kh5 {[%clk 0:01:04]} 44. gxf6 {[%clk 0:00:06]}  Kxh4 {[%clk 0:01:03]} 45. f7 {[%clk 0:00:07]}  Kg5 {[%clk 0:01:03]} 46. Ra8 {[%clk 0:00:07]}  h5 {[%clk 0:01:00]} 47. f8=Q {[%clk 0:00:07]}  Bxf8 {[%clk 0:01:00]} 48. Rxf8 {[%clk 0:00:08]}  h4 {[%clk 0:00:57]} 49. Ke3 {[%clk 0:00:04]}  Kg4 {[%clk 0:00:49]} 50. Kf2 {[%clk 0:00:04]}  a4 {[%clk 0:00:49]} 51. Rc8 {[%clk 0:00:05]}  Kf4 {[%clk 0:00:42]} 52. Rc4+ {[%clk 0:00:05]}  Ke5 {[%clk 0:00:42]} 53. Rxa4 {[%clk 0:00:04]}  h3 {[%clk 0:00:41]} 54. Rh4 {[%clk 0:00:04]}  c2 {[%clk 0:00:40]} 55. Rc4 {[%clk 0:00:03]}  h2 {[%clk 0:00:38]} 56. Kg2 {[%clk 0:00:03]}  h1=Q+ {[%clk 0:00:39]} 57. Kxh1 {[%clk 0:00:03]}  Kd5 {[%clk 0:00:39]} 58. Rxc2 {[%clk 0:00:04]}  Kd4 {[%clk 0:00:40]} 59. Rg2 {[%clk 0:00:05]}  Kd3 {[%clk 0:00:37]} 60. Kg1 {[%clk 0:00:06]} 1-0


[Site "https://www.chess.com"]

[Event "Titled Tuesday Blitz June 20 Early 2023"]
[White "Siniauski, Artsiom"]
[Black "Priasmoro, Novendra"]
[WhiteFideId "13512269"]
[BlackFideId "7105029"]
[WhiteElo "2065"]
[BlackElo "2412"]
[Result "0-1"]
[Round "4"]
[TimeControl "180+2"]
[Date "2023.06.20"]
[WhiteClock "0:00:00"]
[BlackClock "0:00:42"]
[Board "70"]

1. e4 {[%clk 0:02:59]}  e5 {[%clk 0:02:59]} 2. Nf3 {[%clk 0:02:59]}  Nc6 {[%clk 0:03:00]} 3. Bb5 {[%clk 0:02:58]}  Nf6 {[%clk 0:03:00]} 4. d3 {[%clk 0:02:55]}  Bc5 {[%clk 0:02:58]} 5. Nbd2 {[%clk 0:02:50]}  O-O {[%clk 0:02:54]} 6. Nb3 {[%clk 0:02:40]}  Bb6 {[%clk 0:02:52]} 7. Bg5 {[%clk 0:02:38]}  h6 {[%clk 0:02:51]} 8. Bh4 {[%clk 0:02:31]}  d6 {[%clk 0:02:49]} 9. Bxc6 {[%clk 0:02:27]}  bxc6 {[%clk 0:02:49]} 10. Qd2 {[%clk 0:02:25]}  Bg4 {[%clk 0:02:44]} 11. Qc3 {[%clk 0:02:20]}  a5 {[%clk 0:02:35]} 12. Nbd2 {[%clk 0:02:13]}  a4 {[%clk 0:02:35]} 13. b4 {[%clk 0:02:03]}  c5 {[%clk 0:02:22]} 14. O-O {[%clk 0:01:42]}  cxb4 {[%clk 0:02:17]} 15. Qxb4 {[%clk 0:01:43]}  g5 {[%clk 0:02:14]} 16. Bg3 {[%clk 0:01:42]}  Nh5 {[%clk 0:02:11]} 17. c3 {[%clk 0:01:28]}  Qd7 {[%clk 0:02:02]} 18. d4 {[%clk 0:01:24]}  f6 {[%clk 0:01:42]} 19. Rab1 {[%clk 0:01:14]}  Kh7 {[%clk 0:01:39]} 20. Qb5 {[%clk 0:01:04]}  Qf7 {[%clk 0:01:31]} 21. Qc4 {[%clk 0:00:25]}  Qxc4 {[%clk 0:01:26]} 22. Nxc4 {[%clk 0:00:26]}  Bxf3 {[%clk 0:01:27]} 23. gxf3 {[%clk 0:00:25]}  Rfb8 {[%clk 0:01:22]} 24. Nxb6 {[%clk 0:00:21]}  Rxb6 {[%clk 0:01:23]} 25. Rxb6 {[%clk 0:00:21]}  cxb6 {[%clk 0:01:23]} 26. Rb1 {[%clk 0:00:21]}  Ra6 {[%clk 0:01:23]} 27. Rb4 {[%clk 0:00:20]}  Ng7 {[%clk 0:01:23]} 28. Kf1 {[%clk 0:00:20]}  Ne6 {[%clk 0:01:14]} 29. Ke2 {[%clk 0:00:21]}  Nc7 {[%clk 0:01:12]} 30. Kd3 {[%clk 0:00:21]}  b5 {[%clk 0:01:11]} 31. c4 {[%clk 0:00:18]}  bxc4+ {[%clk 0:01:09]} 32. Rxc4 {[%clk 0:00:17]}  Ne6 {[%clk 0:01:09]} 33. dxe5 {[%clk 0:00:16]}  dxe5 {[%clk 0:01:06]} 34. h3 {[%clk 0:00:08]}  Kg6 {[%clk 0:01:06]} 35. Kc3 {[%clk 0:00:07]}  Nd4 {[%clk 0:01:06]} 36. Rc8 {[%clk 0:00:02]}  Nxf3 {[%clk 0:01:04]} 37. Kb4 {[%clk 0:00:03]}  Nd2 {[%clk 0:01:03]} 38. f3 {[%clk 0:00:03]}  Nxf3 {[%clk 0:01:03]} 39. Kb5 {[%clk 0:00:04]}  Ra7 {[%clk 0:00:58]} 40. Rd8 {[%clk 0:00:04]}  Nd4+ {[%clk 0:00:57]} 41. Kc4 {[%clk 0:00:05]}  Rc7+ {[%clk 0:00:57]} 42. Kd5 {[%clk 0:00:05]}  Rc2 {[%clk 0:00:55]} 43. a3 {[%clk 0:00:05]}  Rc3 {[%clk 0:00:55]} 44. Be1 {[%clk 0:00:06]}  Rxa3 {[%clk 0:00:55]} 45. Bb4 {[%clk 0:00:07]}  Rd3 {[%clk 0:00:55]} 46. Kc4 {[%clk 0:00:07]}  Rxh3 {[%clk 0:00:54]} 47. Rd7 {[%clk 0:00:07]}  Nc6 {[%clk 0:00:54]} 48. Bf8 {[%clk 0:00:06]}  Re3 {[%clk 0:00:51]} 49. Rg7+ {[%clk 0:00:05]}  Kh5 {[%clk 0:00:51]} 50. Kd5 {[%clk 0:00:06]}  Nd4 {[%clk 0:00:51]} 51. Rh7 {[%clk 0:00:05]}  Kg4 {[%clk 0:00:50]} 52. Rxh6 {[%clk 0:00:06]}  Rf3 {[%clk 0:00:50]} 53. Be7 {[%clk 0:00:05]}  a3 {[%clk 0:00:50]} 54. Rh8 {[%clk 0:00:03]}  a2 {[%clk 0:00:49]} 55. Ra8 {[%clk 0:00:04]}  Rf2 {[%clk 0:00:49]} 56. Kc4 {[%clk 0:00:02]}  Rc2+ {[%clk 0:00:48]} 57. Kd3 {[%clk 0:00:02]}  Rf2 {[%clk 0:00:48]} 58. Kc3 {[%clk 0:00:02]}  Nc6 {[%clk 0:00:39]} 59. Bd6 {[%clk 0:00:01]}  Kf4 {[%clk 0:00:39]} 60. Bc7 {[%clk 0:00:01]}  g4 {[%clk 0:00:39]} 61. Ra6 {[%clk 0:00:02]}  Nd4 {[%clk 0:00:39]} 62. Rxf6+ {[%clk 0:00:02]}  Ke3 {[%clk 0:00:39]} 63. Ra6 {[%clk 0:00:02]}  Rc2+ {[%clk 0:00:38]} 64. Kb4 {[%clk 0:00:02]}  Rxc7 {[%clk 0:00:39]} 65. Rxa2 {[%clk 0:00:02]}  Rb7+ {[%clk 0:00:39]} 66. Kc5 {[%clk 0:00:03]}  Kxe4 {[%clk 0:00:39]} 67. Kd6 {[%clk 0:00:03]}  Rb6+ {[%clk 0:00:39]} 68. Kc5 {[%clk 0:00:03]}  Rc6+ {[%clk 0:00:40]} 69. Kb4 {[%clk 0:00:04]}  g3 {[%clk 0:00:41]} 70. Re2+ {[%clk 0:00:03]}  Kf3 {[%clk 0:00:42]} 71. Rxe5 {[%clk 0:00:04]}  g2 {[%clk 0:00:42]} 72. Rg5 {[%clk 0:00:00]}  Ne2 {[%clk 0:00:42]} 0-1


[Site "https://www.chess.com"]